[Event "IV Estrellas 2022"]
[Site "La Palma"]
[Date "2022.08.07"]
[Round "2.4"]
[White "Hernandez Leon, Sergio"]
[Black "Antic, Dejan"]
[Result "1-0"]
[ECO "A06"]
[WhiteElo "2094"]
[BlackElo "2452"]
[Annotator "TA"]
[PlyCount "93"]
[EventDate "2022.08.06"]
[EventType "swiss"]
[EventCountry "ESP"]
[SourceTitle "playchess.com"]
[Source "ChessBase"]
[SourceQuality "1"]
[TimeControl "5400+30"]

{[%evp 9,93,-49,-47,-57,-55,-60,-60,-59,-59,-72,-77,-70,-65,-63,-70,-67,-72,-79,-63,-71,-51,-58,-60,-76,-56,-83,-85,-111,-68,-94,-70,-70,-71,-79,-54,-74,-72,-149,-142,-190,-168,-187,-179,-170,-172,-178,-140,-136,-137,-127,-39,-59,0,0,0,9,0,17,14,0,0,-13,0,0,46,24,47,47,55,57,581,538,575,575,500,546,663,649,827,811,29984,1170,5477,1440,1421,1352]} 1. Nf3 {[%emt 0:00:03]} c5 {[%emt 0:01:03]} 2. b3 {[%emt 0:00:21]} d5 {[%emt 0:01:24]} 3. Bb2 {[%emt 0:01:22]} f6 {[%emt 0:04:49]} 4. d3 {[%emt 0:05:49]} e5 {[%emt 0:02:25]} 5. Nbd2 {[%emt 0:01:26]} Nc6 {[%emt 0:00:26]} 6. e4 {[%emt 0:01:23] A06: Réti Opening: 1 Nf3 d5.} d4 {[%emt 0:03:49]} 7. Be2 {[%emt 0:05:58]} Be6 {[%emt 0:02:04] [#]} 8. O-O $146 {[%emt 0:00:51] Black is slightly better.} ({Predecessor:} 8. Nh4 Qd7 9. a4 Bd6 10. Nc4 Bc7 11. O-O Nge7 12. Ba3 b6 13. Bc1 O-O-O 14. Bd2 {½-½ (43) Allen,L (1784)-Thynne,T (1880) Yeovil 2007}) 8... Nge7 {[%emt 0:01:07]} 9. Ne1 {[%emt 0:05:03]} Qd7 {[%emt 0:00:53]} 10. a4 {[%emt 0:00:29]} g5 {[%emt 0:02:45]} 11. Nc4 {[%emt 0:07:41]} Ng6 {[%emt 0:00:29]} 12. Bh5 {[%emt 0:23:44]} O-O-O {[%emt 0:02:55]} 13. g3 {[%emt 0:01:49] Inhibits Nf4.} Be7 {[%emt 0:01:56][%cal Bf8e7,Be7d8,Bd8c7][%mdl 32]} 14. Ng2 {[%emt 0:04:40]} Rdg8 {[%emt 0:03:46]} 15. f3 {[%emt 0:01:37]} Kb8 {[%emt 0:01:44]} 16. Kh1 {[%emt 0:03:52]} Bd8 {[%emt 0:02:16]} 17. Rf2 {[%emt 0:07:42]} Bc7 {[%emt 0:01:33]} 18. Qe2 {[%emt 0:00:29]} a6 {[%emt 0:01:50]} 19. Bc1 {[%emt 0:05:20]} b5 {[%emt 0:02:35]} 20. axb5 {[%emt 0:00:24]} axb5 {[%emt 0:00:05]} 21. Na3 {[%emt 0:00:09]} Nb4 {[%emt 0:04:34]} 22. Bd2 {[%emt 0:03:36]} Kb7 {[%emt 0:00:21]} 23. Ne1 {[%emt 0:12:05]} (23. Rff1 $142) 23... Ra8 $17 {[%emt 0:00:29][%cal Bg8a8,Ba8a6,Ba6d6][%mdl 32]} 24. Qd1 {[%emt 0:00:40]} (24. c4 $17) 24... Ra6 $19 {[%emt 0:01:45]} 25. c3 {[%emt 0:01:35]} dxc3 {[%emt 0:00:45]} 26. Bxc3 {[%emt 0:00:07]} Rha8 {[%emt 0:00:45]} 27. Bb2 {[%emt 0:00:08]} Rd6 {[%emt 0:03:49][%cal Rb4d3]} 28. Rd2 {[%emt 0:01:13]} Rd8 {[%emt 0:05:06]} 29. Bc3 {[%emt 0:04:46]} Ne7 {[%emt 0:01:42]} (29... Nxd3 $17 {[%cal Od3f2] ...Nf2+! is the strong threat.} 30. Rxd3 Rxd3 31. Nxd3 Qxd3 32. Qxd3 Rxd3 33. Nxb5 Bb6) 30. d4 {[%emt 0:00:24]} exd4 {[%emt 0:02:50]} ({Better is} 30... Rxd4 $15 31. Bxd4 exd4) 31. Bxb4 $11 {[%emt 0:00:07]} cxb4 {[%emt 0:00:05]} 32. Nd3 $1 {[%emt 0:00:13] Black must now prevent Nc5+.} Bb6 {[%emt 0:00:12] Inhibits Nc5+.} 33. Nc2 $36 {[%emt 0:00:45][%mdl 2048] Black is under pressure. Pair of Knights!} Bxb3 {[%emt 0:01:06]} 34. Qb1 {[%emt 0:00:05]} Bc4 {[%emt 0:03:02]} 35. Qxb4 {[%emt 0:00:15]} Nc6 {[%emt 0:04:01]} 36. Qa3 {[%emt 0:01:26]} (36. Nc5+ Bxc5 37. Qxc5 Qc7 $17) 36... Bxd3 {[%emt 0:07:29]} (36... Kb8 $11 {is superior.}) 37. Rxd3 {[%emt 0:00:27] Black should prevent Qa6+.} (37. Bg4 Qxg4 $1 38. fxg4 Bxe4+ 39. Kg1 d3+ 40. Kf1 Ba5 $19) 37... Ne5 {[%emt 0:04:28]} (37... Kc7 38. Bg4 Qe8 39. Qa6 $16) 38. Qa6+ {[%emt 0:00:13]} ({Inferior is} 38. Bg4 Nxg4 39. Qa6+ (39. fxg4 $2 Qxg4 40. Kg1 Qxe4 $19) 39... Kc7 40. fxg4 Qc6 $17) 38... Kc7 {[%emt 0:00:08]} 39. Na3 {[%emt 0:01:05] Dancing on a razor blade.} Rb8 $2 {[%emt 0:04:15][%mdl 8192]} (39... Ra8 $2 40. Qxa8 (40. Nxb5+ Qxb5 41. Qxb5 Rxa1+ 42. Kg2 Ra2+ 43. Kh3 Ra5 $11) 40... Qc6 41. Qxc6+ Kxc6 42. Rb3 $18) (39... Nxd3 $14 40. Nxb5+ Kc6 41. Nxd6 Nc5 42. Qb5+ Kc7 43. Ne8+ Kb7 44. Qxd7+ Nxd7) 40. Nxb5+ $18 {[%emt 0:00:27]} Kd8 {[%emt 0:00:05]} 41. Nxd6 {[%emt 0:00:10]} Qxd6 {[%emt 0:00:06]} 42. Rb3 {[%emt 0:00:27]} Nd7 {[%emt 0:05:36]} 43. Qc4 {[%emt 0:00:25]} Rc8 {[%emt 0:01:47]} 44. Qg8+ {[%emt 0:00:52]} Nf8 {[%emt 0:01:16] [#]} 45. Rb5 {[%emt 0:00:17]} (45. Rxb6 $142 $1 {[%mdl 512]} Qc5 (45... Qe7 46. Ra7) 46. Rxf6 Kc7 47. Rf5 Qxf5 48. exf5 Kd6 49. Ra6+ Kc5 50. Qb3) 45... Kc7 {[%emt 0:00:39]} 46. Qf7+ {[%emt 0:00:19]} (46. Bg4 $142 Rd8 47. Rc1+ Kb7 48. Rcb1) 46... Qd7 {[%emt 0:00:49]} 47. Rc1+ {[%emt 0:00:53] Never resign too early!  Weighted Error Value: White=0.10 (very precise) /Black=0.46} 1-0

[Event "IV Estrellas 2022"]
[Site "La Palma"]
[Date "2022.08.07"]
[Round "2.5"]
[White "Martinez Reyes, Pedro Ramon"]
[Black "Perez Bolanos, Joel"]
[Result "1/2-1/2"]
[ECO "A11"]
[WhiteElo "2408"]
[BlackElo "2036"]
[Annotator "TA"]
[PlyCount "63"]
[EventDate "2022.08.06"]
[EventType "swiss"]
[EventCountry "ESP"]
[SourceTitle "playchess.com"]
[Source "ChessBase"]
[SourceQuality "1"]
[TimeControl "5400+30"]

{[%evp 19,63,24,36,8,21,18,38,30,43,40,52,26,46,8,4,0,44,6,25,23,68,-2,56,65,85,77,73,85,79,63,72,76,83,0,0,0,0,0,0,0,0,-7,-7,-7,-6,0]} 1. Nf3 {[%emt 0:01:37]} d5 {[%emt 0:00:09]} 2. g3 {[%emt 0:00:43]} Nf6 {[%emt 0:00:36]} 3. Bg2 {[%emt 0:00:19]} Bf5 {[%emt 0:01:27]} 4. c4 {[%emt 0:02:01]} e6 {[%emt 0:00:36]} 5. O-O {[%emt 1:28:20]} c6 {[%emt 0:00:53]} 6. cxd5 {[%emt 0:00:00]} cxd5 {[%emt 0:01:50]} 7. Qb3 {[%emt 0:00:00]} Qb6 {[%emt 0:02:39]} 8. Qxb6 {[%emt 0:00:00]} axb6 {[%emt 0:00:07]} 9. Nc3 {[%emt 0:00:00]} Nc6 {[%emt 0:08:15]} 10. d3 {[%emt 0:00:00]} Be7 {[%emt 0:05:02]} 11. Bf4 {[%emt 0:00:00] A11: English Opening: 1...c6.} O-O {[%emt 0:02:45]} 12. Nb5 {[%emt 0:00:00] [#]} Ra4 $146 {[%emt 0:03:58]} ({Predecessor:} 12... Rfc8 13. a3 Na5 14. Nfd4 Bg6 15. Bh3 Nc6 16. Rfc1 Bc5 17. Nf3 Ra5 18. Nd6 Bxd6 19. Bxd6 {½-½ (85) Shuvalov,E (2182)-Odegov,A (2286) Chess.com INT 2022}) 13. a3 {[%emt 0:00:00] Against Rb4. White is slightly better.} Rc8 {[%emt 0:09:04]} 14. Rac1 {[%emt 0:00:00]} Raa8 {[%emt 0:09:17]} 15. Bd6 {[%emt 0:00:00]} Kf8 {[%emt 0:02:31]} 16. b4 {[%emt 0:00:00]} Ne8 {[%emt 0:02:31]} 17. Bf4 {[%emt 0:00:00]} h6 {[%emt 0:03:57]} 18. Rc2 {[%emt 0:00:00]} g5 {[%emt 0:07:43]} 19. Be3 {[%emt 0:00:00]} Bd8 {[%emt 0:00:06]} 20. Rfc1 {[%emt 0:00:00]} (20. h4 $1 $14) 20... Ne7 {[%emt 0:03:34]} (20... e5 $11) 21. h4 {[%emt 0:08:00]} f6 {[%emt 0:01:40]} 22. Nfd4 {[%emt 0:00:00] aiming for Rxc8.} Rxc2 {[%emt 0:01:38]} 23. Rxc2 {[%emt 0:00:00]} Kf7 {[%emt 0:01:06]} 24. hxg5 {[%emt 0:00:00] White is much more active.} ({Of course not} 24. Nxf5 Nxf5 25. Bc1 Ned6 26. Nxd6+ Nxd6 $14) 24... hxg5 {[%emt 0:01:48]} 25. Bc1 {[%emt 0:00:00]} ({Reject} 25. Nxf5 Nxf5 26. Bc1 Ned6 27. Nxd6+ Nxd6 $11) 25... Bg6 {[%emt 0:03:10] [#]} 26. Bh3 {[%emt 0:00:00]} (26. f4 $1 $16) 26... e5 $1 $11 {[%emt 0:00:46] The position is equal.} 27. Ne6 {[%emt 0:03:00]} Bf5 {[%emt 0:01:21]} 28. Nxd8+ {[%emt 0:00:00]} Rxd8 {[%emt 0:00:33]} 29. Bxf5 {[%emt 0:00:00]} Nxf5 {[%emt 0:00:42]} 30. g4 {[%emt 0:00:00]} Nfd6 {[%emt 0:00:17]} 31. Nxd6+ Nxd6 32. e3 {[%emt 0:00:00] Weighted Error Value: White=0.18 (very precise) /Black=0.17 (very precise)} 1/2-1/2

[Event "IV Estrellas 2022"]
[Site "La Palma"]
[Date "2022.08.07"]
[Round "2.6"]
[White "Martin Rodriguez, Pablo"]
[Black "Baskin, Robert"]
[Result "0-1"]
[ECO "E11"]
[WhiteElo "2009"]
[BlackElo "2408"]
[Annotator "TA"]
[PlyCount "54"]
[EventDate "2022.08.06"]
[EventType "swiss"]
[EventCountry "ESP"]
[SourceTitle "playchess.com"]
[Source "ChessBase"]
[SourceQuality "1"]
[TimeControl "5400+30"]

{[%evp 13,54,2,8,16,21,18,18,12,20,17,25,20,29,20,31,0,7,-75,-67,-80,-27,-201,-202,-233,-210,-232,-227,-229,-185,-204,-187,-192,-212,-216,-226,-256,-226,-869,-863,-823,-854,-1296,-1248]} 1. d4 {[%emt 0:00:09]} Nf6 {[%emt 0:01:01]} 2. c4 {[%emt 0:00:09]} e6 {[%emt 0:00:20]} 3. g3 {[%emt 0:00:06]} d5 {[%emt 0:00:28]} 4. Nf3 {[%emt 0:00:07]} Bb4+ {[%emt 0:00:14]} 5. Bd2 {[%emt 0:00:07]} Be7 {[%emt 0:00:05]} 6. Bg2 {[%emt 0:00:13]} O-O {[%emt 0:00:06]} 7. O-O {[%emt 0:00:05]} Nbd7 {[%emt 0:00:06]} 8. Qc2 {[%emt 0:01:20] E11: Bogo-Indian.} Ne4 {[%emt 0:00:31]} 9. Nc3 {[%emt 0:09:14]} Nxd2 {[%emt 0:01:45]} 10. Nxd2 {[%emt 0:00:23] The position is equal.} c6 {[%emt 0:00:11]} 11. Rfd1 {[%emt 0:06:58]} f5 {[%emt 0:08:36]} 12. Rab1 {[%emt 0:02:52]} Nf6 {[%emt 0:06:00]} 13. b4 {[%emt 0:00:19]} Bd7 {[%emt 0:01:48] [#]} 14. b5 $146 {[%emt 0:02:35]} ({Predecessor:} 14. c5 Be8 15. Nf3 Qc7 16. e3 Bh5 17. Ne2 Bxf3 18. Bxf3 Ne4 19. Nf4 Qd7 20. Be2 {½-½ (41) Devnani,K (2041)-Engel,R (2128) Cattolica 2022}) 14... Rc8 {[%emt 0:01:56]} 15. Qd3 {[%emt 0:06:52]} (15. a4 $11 {remains equal.}) 15... cxb5 $17 {[%emt 0:06:22]} 16. Nxb5 {[%emt 0:09:43] [#]} a6 {[%emt 0:01:22]} (16... Qa5 $1 $17 {aiming for ...a6.} 17. Rdc1 Bxb5 18. cxb5 Qxa2) 17. Nc3 $2 {[%emt 0:01:26] Loses the game.} (17. Na3 $1 $11) 17... dxc4 $19 {[%emt 0:01:03]} 18. Qc2 {[%emt 0:18:27]} b5 {[%emt 0:04:41][%cal Bb7b5,Bb5b4][%mdl 32] Strongly threatening ...b4.} 19. e4 {[%emt 0:02:59]} b4 {[%emt 0:11:13]} 20. e5 {[%emt 0:06:09]} bxc3 {[%emt 0:02:31]} 21. exf6 {[%emt 0:00:09]} Bxf6 {[%emt 0:00:36]} ({And not} 21... cxd2 22. fxe7 Qxe7 23. Qc3 $17) ({Not} 21... gxf6 22. Qxc3 Bb5 23. Nf1 $15) 22. Nf3 {[%emt 0:02:38]} Qa5 {[%emt 0:01:40] [#] Prevents Ne5. Threatens to win with ...Ba4.} 23. Rdc1 {[%emt 0:00:55]} Rb8 {[%emt 0:02:37]} 24. Qe2 {[%emt 0:28:35]} Qa3 {[%emt 0:05:40]} 25. Qxc4 $2 {[%emt 0:00:00]} (25. Ra1) 25... Rxb1 {[%emt 0:01:18] Black is clearly winning.} 26. Rxb1 {[%emt 0:00:00]} Rc8 {[%emt 0:00:05]} 27. Qb3 {[%emt 0:00:00]} c2 {[%emt 0:00:28] Weighted Error Value: White=0.91/Black=0.07 (flawless)} 0-1

[Event "IV Estrellas 2022"]
[Site "La Palma"]
[Date "2022.08.07"]
[Round "2.7"]
[White "Geske, Julian"]
[Black "Lopez Pereyra, Antonio"]
[Result "1-0"]
[ECO "B31"]
[WhiteElo "2386"]
[BlackElo "1989"]
[Annotator "TA"]
[PlyCount "75"]
[EventDate "2022.08.06"]
[EventType "swiss"]
[EventCountry "ESP"]
[SourceTitle "playchess.com"]
[Source "ChessBase"]
[SourceQuality "1"]
[TimeControl "5400+30"]

{[%evp 9,75,19,29,21,18,13,21,21,21,14,43,19,22,22,52,18,45,23,58,46,79,36,35,0,24,-6,0,0,64,-17,56,62,56,55,134,137,133,127,133,136,143,136,222,214,280,183,407,410,502,516,502,489,817,802,927,918,1139,1134,1262,1245,1231,1194,1457,1494,6411,6415,5198,2285]} 1. e4 {[%emt 0:00:04]} c5 {[%emt 0:00:07]} 2. Nf3 {[%emt 0:00:16]} Nc6 {[%emt 0:00:08]} 3. Bb5 {[%emt 0:00:06]} g6 {[%emt 0:00:15]} 4. Bxc6 {[%emt 0:00:11]} dxc6 {[%emt 0:00:07]} 5. d3 {[%emt 0:00:07]} Qc7 {[%emt 0:00:20]} 6. h3 {[%emt 0:01:30] B31: Sicilian: 2...Nc6 3 Bb5 g6.} e5 {[%emt 0:01:37]} 7. Be3 {[%emt 0:00:50]} b6 {[%emt 0:02:27]} 8. a4 {[%emt 0:01:29][%cal Oa4a5] The position is equal.} a5 {[%emt 0:00:02]} 9. Na3 {[%emt 0:00:46]} Be6 {[%emt 0:04:30]} 10. Qd2 {[%emt 0:05:49]} f6 {[%emt 0:01:05] [#] Prevents Ng5.} 11. Nh2 $146 {[%emt 0:05:20]} ({Predecessor:} 11. b3 Ne7 12. Bh6 O-O-O 13. Bxf8 Rhxf8 14. Qh6 Ng8 15. Qe3 Ne7 16. Qh6 Ng8 17. Qe3 {½-½ (34) Abdumalik,Z (2502)-Dzagnidze,N (2525) Struga 2021}) 11... Rd8 {[%emt 0:08:37][%cal Oc5c4]} 12. b3 {[%emt 0:01:29] Prevents c4.} g5 {[%emt 0:09:32]} 13. Nc4 {[%emt 0:03:05][%cal Oh3h4]} Bg7 {[%emt 0:08:09]} 14. h4 {[%emt 0:02:06]} h6 {[%emt 0:12:59]} 15. Rd1 {[%emt 0:12:51]} Ne7 {[%emt 0:03:54]} 16. g3 {[%emt 0:02:27]} g4 {[%emt 0:11:12]} 17. h5 {[%emt 0:02:42]} (17. O-O $5 {[%cal Rh4h5]}) 17... f5 {[%emt 0:08:21]} 18. exf5 {[%emt 0:04:23]} Bxf5 {[%emt 0:05:53]} (18... Nxf5 $11 19. O-O O-O) 19. Qe2 {[%emt 0:01:22]} (19. O-O $14) 19... b5 {[%emt 0:04:55]} ({Better is} 19... Nd5 $1 $11 20. Bd2 Qc8) 20. Nd2 $14 {[%emt 0:02:16]} Nd5 {[%emt 0:07:01] [#] Hoping for ...Nc3.} 21. Ne4 {[%emt 0:00:41] Prevents Nc3.} c4 {[%emt 0:03:55] Black is on the road to losing.} (21... Nxe3 $14 22. fxe3 Bxe4 23. dxe4 Rxd1+ 24. Kxd1 (24. Qxd1 O-O $14) 24... bxa4) 22. Bc5 $16 {[%emt 0:07:01]} cxb3 {[%emt 0:03:58]} 23. cxb3 {[%emt 0:01:49]} Qf7 {[%emt 0:02:06]} 24. Nxg4 {[%emt 0:02:05]} Qe6 {[%emt 0:00:01]} 25. Ne3 {[%emt 0:01:27] White is much more active. Pair of Knights!} Bh7 {[%emt 0:01:17]} (25... Nxe3 $16 26. Qxe3 Qxb3) 26. O-O $18 {[%emt 0:01:48]} Bf8 {[%emt 0:00:29]} 27. Rfe1 {[%emt 0:02:11] Bxf8 is the strong threat.} Bxc5 $2 {[%emt 0:00:22]} (27... Nc3 28. Nxc3 Bxc5) 28. Nxc5 {[%emt 0:00:16]} Qh3 {[%emt 0:00:20]} 29. Qg4 {[%emt 0:02:03] White is clearly winning.} Qxg4 {[%emt 0:00:01]} 30. Nxg4 {[%emt 0:00:08]} Nc3 {[%emt 0:00:27]} (30... e4 $142 31. dxe4 Nc3) 31. Rxe5+ {[%emt 0:00:20]} Kf7 {[%emt 0:00:00]} 32. Rde1 {[%emt 0:00:56]} Nd5 {[%emt 0:00:15]} 33. axb5 {[%emt 0:01:16]} cxb5 {[%emt 0:00:01]} 34. Ne6 {[%emt 0:00:21]} Rd7 {[%emt 0:00:26]} 35. Nxh6+ {[%emt 0:00:13]} Kf6 {[%emt 0:00:25]} 36. Ng4+ {[%emt 0:00:07]} Kf7 {[%emt 0:00:46]} 37. Ng5+ {[%emt 0:00:11]} Kg7 {[%emt 0:00:00] [#]} 38. Rxd5 $1 {[%emt 0:00:41] Weighted Error Value: White=0.19 (very precise) /Black=0.44} 1-0

[Event "IV Estrellas 2022"]
[Site "La Palma"]
[Date "2022.08.07"]
[Round "2.8"]
[White "Miranda Herrera, Miguel"]
[Black "Pierrot, Facundo"]
[Result "1/2-1/2"]
[ECO "D41"]
[WhiteElo "1904"]
[BlackElo "2371"]
[Annotator "RC"]
[PlyCount "125"]
[EventDate "2022.08.06"]
[EventType "swiss"]
[EventCountry "ESP"]
[SourceTitle "playchess.com"]
[Source "ChessBase"]
[SourceQuality "1"]
[TimeControl "5400+30"]

1. c4 {[%emt 0:00:04]} c6 {[%emt 0:00:28]} 2. e4 {[%emt 0:00:07]} d5 {[%emt 0:00:11]} 3. exd5 {[%emt 0:00:05]} cxd5 {[%emt 0:00:07]} 4. cxd5 {[%emt 0:00:05]} Nf6 {[%emt 0:00:10]} 5. Nc3 {[%emt 0:00:04]} Nxd5 {[%emt 0:00:12]} 6. Bc4 {[%emt 0:00:05]} e6 {[%emt 0:03:01]} 7. Nf3 {[%emt 0:00:08]} Be7 {[%emt 0:00:23]} 8. O-O {[%emt 0:01:21]} O-O {[%emt 0:00:06]} 9. d4 {[%emt 0:00:05]} Nxc3 {[%emt 0:02:16]} 10. bxc3 {[%emt 0:00:08]} Qc7 {[%emt 0:00:02]} 11. Qe2 {[%emt 0:06:44]} Nc6 {[%emt 0:01:26]} 12. Bd3 {[%emt 0:05:29]} Bd7 {[%emt 0:04:22]} 13. Ng5 {[%emt 0:18:10]} Bxg5 {[%emt 0:02:27]} 14. Bxg5 {[%emt 0:00:20]} Rae8 {[%emt 0:00:02]} 15. Rfe1 {[%emt 0:10:15]} f5 {[%emt 0:05:08]} 16. Qd2 {[%emt 0:05:31]} Qa5 {[%emt 0:04:15]} 17. Rab1 {[%emt 0:03:53]} b6 {[%emt 0:00:25]} 18. Bf4 {[%emt 0:05:21]} Ne7 {[%emt 0:04:00]} 19. Bc4 {[%emt 0:15:58]} Nd5 {[%emt 0:02:36]} 20. Bd6 {[%emt 0:03:13]} Rf7 {[%emt 0:01:11]} 21. Rb3 {[%emt 0:01:33]} Qa4 {[%emt 0:02:29]} 22. Bf1 {[%emt 0:04:08]} Qc6 {[%emt 0:01:50]} 23. Be5 {[%emt 0:00:07]} Ne7 {[%emt 0:02:11]} 24. c4 {[%emt 0:04:35]} Ng6 {[%emt 0:00:07]} 25. c5 {[%emt 0:01:01]} bxc5 {[%emt 0:03:11]} 26. Rc1 {[%emt 0:00:07]} Qa8 {[%emt 0:02:17]} 27. Rxc5 {[%emt 0:01:12]} Bc6 {[%emt 0:00:16]} 28. Rxc6 {[%emt 0:00:18]} Nxe5 {[%emt 0:02:28]} 29. dxe5 {[%emt 0:04:44]} Qxc6 {[%emt 0:00:05]} 30. Bb5 {[%emt 0:00:04]} Qa8 {[%emt 0:00:29]} 31. Bxe8 {[%emt 0:00:07]} Qxe8 {[%emt 0:00:04]} 32. Rd3 {[%emt 0:02:21]} Rb7 {[%emt 0:02:00]} 33. g3 {[%emt 0:00:35]} Qc6 {[%emt 0:00:24]} 34. Rb3 {[%emt 0:01:37]} Rd7 {[%emt 0:03:35]} 35. Rd3 {[%emt 0:00:50]} Rxd3 {[%emt 0:13:34]} 36. Qxd3 {[%emt 0:00:06]} h6 {[%emt 0:00:19]} 37. Qd4 {[%emt 0:01:52]} a6 {[%emt 0:00:26]} 38. h4 {[%emt 0:00:34]} Kf7 {[%emt 0:03:39]} 39. a4 {[%emt 0:02:00]} Kg6 {[%emt 0:05:06]} 40. Kh2 {[%emt 0:00:25]} Qc2 {[%emt 0:01:31]} 41. Kg1 {[%emt 0:02:27]} a5 {[%emt 0:02:33]} 42. Qb6 {[%emt 0:00:45]} Qd1+ {[%emt 0:00:37]} 43. Kh2 {[%emt 0:00:22]} Qd5 {[%emt 0:00:15]} 44. Qb5 {[%emt 0:01:30]} Qf3 {[%emt 0:01:37]} 45. Qe8+ {[%emt 0:01:01]} Kh7 {[%emt 0:00:08]} 46. h5 {[%emt 0:01:19]} Qxf2+ {[%emt 0:00:27]} 47. Kh3 {[%emt 0:00:24]} Qf1+ {[%emt 0:01:52]} 48. Kh2 {[%emt 0:00:01]} Qe2+ {[%emt 0:02:47]} 49. Kg1 {[%emt 0:00:02]} Qe3+ {[%emt 0:02:43]} 50. Kg2 {[%emt 0:00:16]} Qe4+ {[%emt 0:00:55]} 51. Kg1 {[%emt 0:00:56]} Qg4 {[%emt 0:04:00]} 52. Kf2 {[%emt 0:00:02]} f4 {[%emt 0:00:10]} 53. gxf4 {[%emt 0:00:04]} Qxf4+ {[%emt 0:00:06]} 54. Kg2 {[%emt 0:00:06]} Qf5 {[%emt 0:00:54]} 55. Kg1 {[%emt 0:00:20]} Qg4+ {[%emt 0:06:24]} 56. Kf2 {[%emt 0:00:09]} Qf4+ {[%emt 0:01:19]} 57. Kg2 {[%emt 0:00:16]} Qf5 {[%emt 0:01:56]} 58. Kg1 {[%emt 0:00:05]} g6 {[%emt 0:02:47]} 59. Qe7+ {[%emt 0:00:02]} Kg8 {[%emt 0:00:06]} 60. Qd8+ {[%emt 0:00:25]} Kg7 {[%emt 0:00:10]} 61. Qc7+ {[%emt 0:00:12]} Kg8 {[%emt 0:00:32]} 62. Qd8+ {[%emt 0:00:06]} Kg7 {[%emt 0:00:28]} 63. Qe8 {[%emt 0:05:48]} 1/2-1/2

[Event "IV Estrellas 2022"]
[Site "La Palma"]
[Date "2022.08.07"]
[Round "2.9"]
[White "Pap, Misa"]
[Black "Marrero Rodriguez, Jorge"]
[Result "1/2-1/2"]
[ECO "B12"]
[WhiteElo "2375"]
[BlackElo "1941"]
[Annotator "RC"]
[PlyCount "59"]
[EventDate "2022.08.06"]
[EventType "swiss"]
[EventCountry "ESP"]
[SourceTitle "playchess.com"]
[Source "ChessBase"]
[SourceQuality "1"]
[TimeControl "5400+30"]

1. e4 {[%emt 0:00:09]} c6 {[%emt 0:00:04]} 2. Ne2 {[%emt 0:02:08]} d5 {[%emt 0:01:04]} 3. e5 {[%emt 0:00:05]} Bf5 {[%emt 0:00:29]} 4. Ng3 {[%emt 0:04:23]} Bg6 {[%emt 0:00:23]} 5. h4 {[%emt 0:00:20]} h5 {[%emt 0:00:39]} 6. d4 {[%emt 0:15:19]} e6 {[%emt 0:00:27]} 7. Be2 {[%emt 0:01:52]} c5 {[%emt 0:00:32]} 8. c3 {[%emt 0:02:37]} Nc6 {[%emt 0:00:31]} 9. b3 {[%emt 0:13:38]} cxd4 {[%emt 0:06:38]} 10. cxd4 {[%emt 0:00:06]} Qb6 {[%emt 0:00:34]} 11. Bb2 {[%emt 0:00:26]} Bb4+ {[%emt 0:09:56]} 12. Kf1 {[%emt 0:00:11]} Be7 {[%emt 0:01:00]} 13. Bxh5 {[%emt 0:07:47]} Bxh5 {[%emt 0:01:52]} 14. Nxh5 {[%emt 0:00:04]} g6 {[%emt 0:02:33]} 15. Nf4 {[%emt 0:00:01]} Rxh4 {[%emt 0:00:58]} 16. Rxh4 {[%emt 0:00:04]} Bxh4 {[%emt 0:00:06]} 17. Qg4 {[%emt 0:00:09]} Be7 {[%emt 0:03:40]} 18. Kg1 {[%emt 0:12:26]} Nh6 {[%emt 0:01:04]} 19. Qd1 {[%emt 0:01:58]} Nf5 {[%emt 0:00:32]} 20. Ne2 {[%emt 0:00:01]} Rc8 {[%emt 0:01:08]} 21. g3 {[%emt 0:00:57]} Bg5 {[%emt 0:01:01]} 22. Kg2 {[%emt 0:00:28]} Be3 {[%emt 0:02:00]} 23. Nbc3 {[%emt 0:01:06]} Qd8 {[%emt 0:06:39]} 24. Nb5 {[%emt 0:06:21]} a6 {[%emt 0:05:39]} 25. Na3 {[%emt 0:00:24]} Qg5 {[%emt 0:00:37]} 26. Nc2 {[%emt 0:00:14]} Nh4+ {[%emt 0:00:58]} 27. Kg1 {[%emt 0:02:23]} Nf3+ {[%emt 0:01:36]} 28. Kg2 {[%emt 0:05:34]} Nh4+ {[%emt 0:00:31]} 29. Kg1 {[%emt 0:00:00]} Nf3+ {[%emt 0:00:19]} 30. Kg2 {[%emt 0:04:52]} 1/2-1/2